bitfinex-derivatives/quotes_ETHF0:USTF0_20240817
["timestamp","ask_amount","ask_price","bid_price","bid_amount"]
[1723852800504,0.00025032,2592.7,2592.6,9.21674872]
[1723852800693,0.00025032,2592.7,2592.6,7.28784706]
[1723852801007,0.00025032,2592.7,2592.6,9.29941845]
[1723852801598,0.00025032,2592.7,2592.6,9.2996248]
[1723852802204,0.00025032,2592.7,2592.6,7.28784706]
[1723852803007,0.00025032,2592.7,2592.6,9.30009545]
[1723852803197,0.00025032,2592.7,2592.6,8.80596444]
[1723852803708,0.00025032,2592.7,2592.6,6.79371605]
[1723852803896,0.00025032,2592.7,2592.6,7.94037336]
[1723852804100,0.00025032,2592.7,2592.6,7.08974338]
[1723852804301,0.00025032,2592.7,2592.6,6.08321605]
[1723852804603,0.35065032,2592.7,2592.6,7.0901225]
[1723852804807,0.35065032,2592.7,2592.6,7.09012817]
[1723852805005,0.35065032,2592.7,2592.6,6.08351461]
[1723852805307,0.35065032,2592.7,2592.6,2.93481865]
[1723852805505,0.00025032,2592.7,2592.6,1.00662175]
[1723852805705,0.35065032,2592.7,2592.6,1.00662175]
[1723852805901,0.35065032,2592.7,2592.6,2.93439523]
[1723852806203,0.35065032,2592.7,2592.6,2.93444914]
[1723852806505,0.35065032,2592.7,2592.6,1.00623837]
[1723852807410,4.20745032,2592.7,2592.6,1.00623837]
[1723852808107,8.93088262,2592.7,2592.5,1.00623837]
[1723852808314,1.5156323,2592.6,2592.4,1.00623837]
[1723852808801,4.1069,2592.5,2592.1,1.00623837]
[1723852808996,4.72396503,2592.3,2592.1,1.00623837]
[1723852809409,8.58156503,2592.3,2592.0,1.00623837]
[1723852809712,4.72396503,2592.3,2592.0,1.00623837]
[1723852810309,4.72396503,2592.3,2592.1,0.6986]
[1723852810507,3.2078,2592.3,2592.1,0.6986]
[1723852810708,1.51616503,2592.5,2592.2,0.3648]
[1723852810900,1.88666503,2592.6,2592.2,3.29942537]
[1723852811100,0.3705,2592.6,2592.4,1.00623837]
[1723852811301,0.3705,2592.6,2592.5,0.3739]
[1723852811511,0.3705,2592.6,2592.5,4.85757018]
[1723852812201,0.3705,2592.6,2592.5,4.50877018]
[1723852812403,0.3705,2592.6,2592.5,4.13487018]
[1723852812915,1.88666503,2592.6,2592.5,4.13487018]
[1723852813209,0.3705,2592.6,2592.5,4.13487018]
[1723852813908,1.88666503,2592.6,2592.5,4.13487018]
[1723852814213,4.2281,2592.6,2592.3,1.00623837]
[1723852814508,0.3705,2592.6,2592.3,1.00623837]
[1723852815006,1.88666503,2592.6,2592.3,1.00623837]
[1723852815207,0.3705,2592.6,2592.3,1.00623837]
[1723852816412,0.2494,2592.5,2592.2,1.74493837]
[1723852816609,0.2494,2592.5,2592.3,1.00623837]
[1723852816909,0.3705,2592.6,2592.3,5.04385349]
[1723852817810,0.3705,2592.6,2592.4,0.345]
[1723852818618,0.3705,2592.6,2592.3,5.04385349]
[1723852819514,0.3705,2592.6,2592.3,4.03761512]
[1723852820408,0.3705,2592.6,2592.3,5.04385349]
[1723852820706,0.3705,2592.6,2592.3,4.03761512]
[1723852821019,0.00025032,2592.7,2592.4,2.93438296]
[1723852821208,0.00025032,2592.7,2592.5,1.37233837]
[1723852821514,0.00025032,2592.7,2592.6,1.93416706]
[1723852821713,0.00025032,2592.7,2592.6,5.79096706]
[1723852822015,0.00025032,2592.7,2592.6,8.94951833]
[1723852822204,0.00025032,2592.7,2592.6,9.9557567]
[1723852822610,0.00025032,2592.7,2592.6,5.90772801]
[1723852823716,0.00025032,2592.7,2592.6,6.10070092]
[1723852824217,0.00025032,2592.7,2592.6,5.09446255]
[1723852824520,0.00025032,2592.7,2592.6,8.02874446]
[1723852824810,0.00025032,2592.7,2592.6,8.5319634]
[1723852825017,0.00025032,2592.7,2592.6,12.3887634]
[1723852825413,0.00578347,2592.9,2592.6,15.87930609]
[1723852825718,0.00578347,2592.9,2592.8,2.01135772]
[1723852826020,0.00578347,2592.9,2592.8,8.25678424]
[1723852826216,0.00578347,2592.9,2592.8,12.61660278]
[1723852826406,0.00851765,2592.9,2592.8,15.10222652]
[1723852826608,3.2078,2593.5,2592.8,17.61660278]
[1723852826806,3.2078,2593.5,2593.2,1.00492952]
[1723852827013,3.2078,2593.5,2593.3,0.7297]
[1723852827313,3.2078,2593.5,2593.3,5.12376805]
[1723852827517,3.856,2593.4,2593.2,4.35379588]
[1723852827718,0.3665,2593.4,2593.1,0.00578347]
[1723852830311,3.81003503,2593.4,2593.1,0.00578347]
[1723852830508,3.2078,2593.2,2593.1,0.00578347]
[1723852830922,7.0638,2593.2,2593.1,0.00578347]
[1723852831613,8.57996503,2593.2,2593.1,0.00578347]
[1723852832913,10.50746503,2593.2,2593.1,0.00578347]
[1723852833113,8.9913,2593.2,2593.1,0.00578347]
[1723852833416,15.9188,2593.2,2593.1,0.00578347]
[1723852833609,26.8428,2593.2,2593.1,0.00578347]
[1723852833810,1.9279,2592.7,2592.3,1.92813]
[1723852834026,3.2078,2592.6,2592.5,1.388]
[1723852834414,7.0654,2592.6,2592.5,1.388]
[1723852836024,8.99334,2592.6,2592.5,1.388]
[1723852836929,7.0654,2592.6,2592.3,0.00578347]
[1723852837118,5.74077442,2592.5,2592.3,0.00578347]
[1723852837312,1.92809,2592.4,2592.3,0.00578347]
[1723852837520,7.17369,2592.4,2592.3,0.00578347]
[1723852837816,3.8576,2592.4,2592.3,1.39378347]
[1723852838015,3.8576,2592.4,2592.3,3.70025347]
[1723852838225,5.37081987,2592.4,2592.3,1.77208347]
[1723852838427,7.29890987,2592.4,2592.3,1.77208347]
[1723852839819,5.78569,2592.4,2592.3,1.77208347]
[1723852840015,5.37081987,2592.4,2592.3,1.77208347]
[1723852840233,3.8576,2592.4,2592.3,1.77208347]
[1723852840519,5.78569,2592.4,2592.3,1.77208347]
[1723852840720,5.78569,2592.4,2592.3,2.46448347]
[1723852840928,3.8576,2592.4,2592.3,4.39265347]
[1723852841222,3.8576,2592.4,2592.3,2.46448347]
[1723852841924,3.8576,2592.4,2592.3,4.39265347]
[1723852843828,3.8576,2592.4,2592.3,2.46448347]
[1723852844123,3.8576,2592.4,2592.3,4.39265347]
[1723852844337,5.78569,2592.4,2592.3,1.39378347]
[1723852844621,5.78569,2592.4,2592.3,0.00578347]
[1723852845021,5.78569,2592.4,2592.3,0.74148347]
[1723852845227,5.78569,2592.4,2592.3,1.09738347]
[1723852845723,8.99349,2592.4,2592.3,1.09738347]
[1723852846230,15.92158,2592.4,2592.3,0.00578347]
[1723852847027,17.9395459,2592.4,2592.3,0.00578347]
[1723852847221,28.8635459,2592.4,2592.3,0.00578347]
[1723852847427,26.84558,2592.4,2592.3,0.00578347]
[1723852847735,31.29612737,2592.4,2592.3,0.00578347]
[1723852850728,1.92854,2591.9,2591.7,0.0042007]
[1723852850919,3.2078,2591.8,2591.7,0.7429007]
[1723852851120,7.0662,2591.8,2591.7,2.6715107]
[1723852853033,3.8584,2591.8,2591.7,2.6715107]
[1723852853325,3.8584,2591.8,2591.7,2.1309007]
[1723852853719,3.8584,2591.8,2591.7,4.0595107]
[1723852854628,3.8584,2591.8,2591.7,2.1309007]
[1723852855530,3.8584,2591.8,2591.7,4.0595107]
[1723852856225,3.8584,2591.8,2591.7,2.1309007]
[1723852856818,3.8584,2591.8,2591.7,4.0595107]
[1723852857525,3.8584,2591.8,2591.7,2.1309007]
[1723852858328,7.17494,2591.8,2591.7,0.7429007]
[1723852858526,3.8584,2591.7,2591.3,3.31688]
[1723852858725,1.9288,2591.5,2591.3,1.388]
[1723852859026,1.9288,2591.5,2591.3,3.3169]
[1723852859427,1.93233056,2591.5,2591.3,3.32035792]
[1723852860326,1.93233056,2591.5,2591.3,0.00345792]
[1723852860327,1.92884,2591.4,2591.3,0.00345792]
[1723852860525,7.17604,2591.4,2591.3,0.00345792]
[1723852861234,12.17604,2591.4,2591.3,0.00345792]
[1723852861431,12.43414,2591.4,2591.3,0.00345792]
[1723852862333,10.5053,2591.4,2590.6,0.3583]
[1723852862525,10.5053,2591.4,2590.7,0.7161]
[1723852862526,1.92928,2590.8,2590.7,0.7161]
[1723852863231,7.17728,2590.8,2590.7,0.71977847]
[1723852863625,7.53028,2590.8,2590.7,0.71977847]
[1723852865134,1.92951,2590.5,2590.3,3.31765]
[1723852865339,1.92949,2590.6,2590.4,0.3741]
[1723852865527,3.2078,2590.5,2590.4,2.30368]
[1723852865732,3.2078,2590.5,2590.4,0.3741]
[1723852866141,3.2078,2590.5,2590.4,2.30698123]
[1723852866338,3.2078,2590.5,2590.4,0.37740123]
[1723852866839,3.2078,2590.5,2590.4,2.30698123]
[1723852869932,1.93518347,2590.7,2590.4,2.30698123]
[1723852870242,3.2078,2590.5,2590.4,0.37740123]
[1723852870827,3.2078,2590.5,2590.4,2.30698123]
[1723852873739,3.2078,2590.5,2590.4,0.37740123]
[1723852874442,3.2078,2590.5,2590.4,2.30698123]
[1723852874647,0.00578347,2590.7,2590.6,1.92943]
[1723852874835,3.2078,2590.8,2590.7,1.92936]
[1723852875344,3.2078,2590.8,2590.7,5.78936]
[1723852876436,3.2078,2590.8,2590.6,0.3538]
[1723852876642,5.13708,2590.8,2590.7,0.3421]
[1723852876937,5.13708,2590.8,2590.5,0.00578347]
[1723852876938,1.92943,2590.6,2590.5,0.00578347]
[1723852877135,1.92943,2590.6,2589.2,6.5428]
[1723852877136,1.9296,2590.4,2589.2,6.5428]
[1723852877336,1.9296,2590.4,2589.8,0.3421]
[1723852877337,3.2078,2590.1,2589.8,0.3421]
[1723852877536,5.13771,2590.0,2589.8,0.3421]
[1723852877732,3.2078,2590.0,2589.8,0.3421]
[1723852877948,5.13772,2590.0,2589.8,0.3421]
[1723852878243,3.2078,2590.0,2589.9,0.3654]
[1723852878548,5.13768,2590.0,2589.9,0.3654]
[1723852878731,8.99848,2590.0,2589.9,0.3654]
[1723852881639,1.92995,2589.9,2589.8,0.00463305]
[1723852883144,5.79155,2589.9,2589.8,0.00463305]
[1723852883646,1.93033,2589.4,2589.3,0.3543]
[1723852883846,5.13813,2589.4,2589.3,0.3543]
[1723852884146,3.2078,2589.4,2589.3,0.3543]
[1723852884739,5.1426855,2589.4,2589.3,0.35930277]
[1723852891951,3.2123555,2589.4,2589.3,2.28970277]
[1723852894355,0.0045555,2589.4,2589.3,6.15130277]
[1723852894542,0.0045555,2589.4,2589.3,10.60691686]
[1723852895044,0.00578347,2589.6,2589.5,1.93025]
[1723852896038,0.01035114,2589.6,2589.5,1.93025]
[1723852896450,0.01035114,2589.6,2589.5,5.79185]
[1723852898450,0.01035114,2589.6,2589.5,1.93025]
[1723852898662,0.01035114,2589.6,2589.5,5.79185]
[1723852901353,0.01035114,2589.6,2589.5,14.97125454]
[1723852902051,0.01035114,2589.6,2589.5,9.97125454]
[1723852902860,0.01035114,2589.6,2589.5,14.97125454]
[1723852903053,3.2078,2590.0,2589.9,1.92995]
[1723852903255,3.2078,2590.0,2589.8,1.92999]
[1723852903960,3.21269863,2590.0,2589.9,1.92995]
[1723852905054,3.21269863,2590.0,2589.9,5.79075]
[1723852905961,0.00489863,2590.0,2589.9,12.33916238]
[1723852906256,0.00578347,2590.2,2590.1,1.92981]
[1723852906562,10.924,2590.7,2590.5,1.92944]
[1723852906763,3.2078,2590.8,2590.6,0.7332]
[1723852907052,3.2124934,2590.8,2590.6,0.7332]
[1723852907763,5.1417834,2590.8,2590.6,0.7332]
[1723852908667,1.9339834,2590.8,2590.6,0.7332]
[1723852909754,0.0046934,2590.8,2590.6,0.7332]
[1723852911959,1.9340034,2590.8,2590.6,0.7332]
[1723852912564,1.92936,2590.7,2590.5,0.3466]
[1723852912858,1.92943,2590.6,2590.5,0.3466]
[1723852913059,5.13723,2590.6,2590.5,0.3466]
[1723852913966,3.2078,2590.6,2590.5,0.3466]
[1723852914362,5.13723,2590.6,2590.5,0.3466]
[1723852914959,3.2078,2590.6,2590.5,0.3466]
[1723852916565,3.2078,2590.6,2590.4,1.92958]
[1723852917768,2.3035,2590.7,2590.5,1.92951]
[1723852918070,2.30347,2590.7,2590.4,1.92953]
[1723852918268,1.92944,2590.6,2590.4,1.92953]
[1723852918569,1.92944,2590.6,2590.2,0.3496]
[1723852918570,5.13724,2590.6,2590.3,1.92961]
[1723852918865,0.3741,2590.7,2590.4,1.92958]
[1723852918866,2.30349,2590.7,2590.4,1.92958]
[1723852919961,5.51129,2590.7,2590.4,1.92958]
[1723852920160,3.5819,2590.7,2590.5,1.9295]
[1723852920362,5.51127,2590.7,2590.4,1.92953]
[1723852923156,3.5819,2590.7,2590.2,0.3496]
[1723852923363,1.92946,2590.6,2590.2,0.3496]
[1723852923567,5.51131,2590.7,2590.4,1.92958]
[1723852923870,3.5819,2590.7,2590.5,1.9295]
[1723852924167,5.51127,2590.7,2590.5,1.9295]
[1723852924468,5.51127,2590.7,2590.4,1.92954]
[1723852925170,3.5819,2590.7,2590.5,1.92945]
[1723852925470,3.2078,2590.7,2590.6,0.7127]
[1723852926264,5.13716,2590.7,2590.6,0.7127]
[1723852926572,5.48566,2590.7,2590.6,0.7127]
[1723852926874,3.5563,2590.7,2590.6,0.3657]
[1723852927662,5.48566,2590.7,2590.6,0.3657]
[1723852929865,6.87566,2590.7,2590.6,0.3657]
[1723852937765,1.92944,2590.6,2590.3,1.9296]
[1723852937970,1.92944,2590.6,2590.4,1.92957]
[1723852938374,8.38670287,2590.7,2590.4,1.92957]
[1723852938976,1.92943,2590.6,2590.4,1.92957]
[1723852939177,5.13723,2590.6,2590.4,1.92957]
[1723852939575,3.31955,2590.5,2590.3,0.7121]
[1723852939772,3.31955,2590.5,2590.3,2.64173]
[1723852940977,1.39,2590.5,2590.4,1.92958]
[1723852941177,8.03828287,2590.6,2590.4,1.92958]
[1723852941778,11.89828287,2590.6,2590.3,2.64171]
[1723852941969,8.03828287,2590.6,2590.3,2.64171]
[1723852942484,8.03828287,2590.6,2590.3,2.6417]
[1723852943183,6.10880287,2590.6,2590.4,1.92955]
[1723852943372,1.51100287,2590.7,2590.4,1.39]
[1723852943573,1.51100287,2590.7,2590.6,1.92943]
[1723852946576,3.9486539,2590.8,2590.6,1.92943]
[1723852946776,3.9486539,2590.8,2590.7,0.7039]
[1723852947177,1.9339834,2590.8,2590.7,0.7039]
[1723852947380,3.95553309,2590.8,2590.7,0.7039]
[1723852947678,1.9339834,2590.8,2590.7,0.7039]
[1723852948384,1.9339834,2590.8,2590.7,1.0755]
[1723852948585,0.0046934,2590.8,2590.7,1.0755]
[1723852948980,5.1417734,2590.8,2590.7,1.0755]
[1723852949180,5.38229684,2590.8,2590.7,1.0755]
[1723852949376,7.90475421,2590.8,2590.7,1.0755]
[1723852950184,9.29475421,2590.8,2590.7,1.0755]
[1723852950683,6.87990662,2590.8,2590.7,1.0755]
[1723852950988,9.40984542,2590.8,2590.7,1.0755]
[1723852951583,6.87990662,2590.8,2590.7,1.0755]
[1723852952384,4.95062662,2590.8,2590.7,1.0755]
[1723852952989,3.67210662,2590.8,2590.7,1.0755]
[1723852953294,6.87990662,2590.8,2590.7,1.0755]
[1723852953987,6.63937119,2590.8,2590.7,1.0755]
[1723852954188,6.87990221,2590.8,2590.7,1.0755]
[1723852955683,4.95062221,2590.8,2590.7,1.0755]
[1723852956091,3.56062221,2590.8,2590.7,1.0755]
[1723852956282,5.48990221,2590.8,2590.7,1.0755]
[1723852956487,3.56062221,2590.8,2590.7,1.0755]
[1723852956890,5.48990221,2590.8,2590.7,1.0755]
[1723852957790,3.56062221,2590.8,2590.7,1.0755]
[1723852957994,6.09197884,2590.8,2590.7,1.0755]
[1723852958192,6.09195504,2590.8,2590.7,1.0755]
[1723852958594,6.09195504,2590.8,2590.7,3.00486]
[1723852960993,1.51848851,2590.9,2590.7,15.18449056]
[1723852961290,4.113,2591.2,2591.1,1.92906]
[1723852961291,1.51848851,2591.2,2591.1,1.92906]
[1723852961492,1.51674914,2591.4,2591.3,1.92891]
[1723852961692,1.51674914,2591.7,2591.3,10.71442781]
[1723852961891,1.51674914,2591.7,2591.6,3.31869]
[1723852962193,0.00451362,2591.7,2591.6,3.32245877]
[1723852962492,0.00451362,2591.7,2591.6,3.69715877]
[1723852963086,0.00451362,2591.7,2591.6,7.55555877]
[1723852963488,0.00451362,2591.7,2591.6,3.69715877]
[1723852964086,0.00451362,2591.7,2591.6,11.73297772]
[1723852964494,0.00451362,2591.7,2591.6,12.09997772]
[1723852965308,0.00451362,2591.7,2591.6,17.09997772]
[1723852965893,0.00451362,2591.7,2591.6,18.11002778]
[1723852966094,0.00578347,2591.9,2591.8,1.92854]
[1723852966295,0.00578347,2591.9,2591.8,3.31854]
[1723852966596,0.00578347,2591.9,2591.8,7.17694]
[1723852966992,0.00871845,2591.9,2591.8,7.17694]
[1723852967989,0.00871845,2591.9,2591.8,5.2484]
[1723852968299,0.00871845,2591.9,2591.8,1.39]
[1723852969295,1.92854,2591.8,2591.6,0.00376877]
[1723852969502,6.52641,2591.7,2591.6,0.00376877]
[1723852969694,10.73411,2591.7,2591.6,0.00376877]
[1723852969893,1.92876,2591.5,2591.4,0.00578347]
[1723852970196,3.31876,2591.5,2591.4,0.00578347]
[1723852970396,9.10672,2591.5,2591.4,0.00578347]
[1723852970596,3.31905,2591.2,2591.0,5.404]
[1723852970800,0.3782,2591.1,2591.0,5.40759156]
[1723852971299,4.2374,2591.1,2591.0,5.40759156]
[1723852974192,5.13679,2591.2,2591.0,9.26679156]
[1723852974193,3.2078,2591.2,2591.0,9.26679156]
[1723852974393,3.2078,2591.2,2591.1,2.28306]
[1723852974592,3.2078,2591.2,2591.1,2.64966]
[1723852974793,3.2078,2591.2,2591.1,10.79289129]
[1723852977799,0.3505,2591.6,2591.3,1.92886]
[1723852977993,3.2078,2591.4,2591.2,1.92894]
[1723852979705,3.2078,2591.4,2591.3,1.92891]
[1723852981196,3.2078,2591.7,2591.4,1.92879]
[1723852982804,3.2078,2591.7,2591.5,1.92876]
[1723852983203,3.2078,2591.7,2591.2,0.3737]
[1723852983204,3.2078,2591.7,2591.4,1.92883]
[1723852983395,5.13642,2591.7,2591.4,1.92883]
[1723852984096,5.13642,2591.7,2591.3,1.92887]
[1723852984301,5.13642,2591.7,2591.3,1.92885]
[1723852984503,5.13642,2591.7,2591.3,5.953073]
[1723852985504,5.13642,2591.7,2591.4,1.92884]
[1723852985902,5.13642,2591.7,2591.3,1.92887]
[1723852986302,3.2078,2591.7,2591.2,2.30266]
[1723852986504,3.2078,2591.4,2591.2,2.30266]
[1723852986903,0.343,2591.6,2591.4,1.92883]
[1723852987102,0.343,2591.6,2591.3,1.92888]
[1723852987302,0.343,2591.6,2591.2,0.3737]
[1723852987303,2.27171,2591.6,2591.2,0.3737]
[1723852987508,0.343,2591.6,2591.3,1.92886]
[1723852987709,0.343,2591.6,2591.4,1.92883]
[1723852988102,0.343,2591.6,2591.3,1.92887]
[1723852989007,0.00871845,2591.9,2591.8,1.92854]
[1723852989402,0.00871845,2591.9,2591.8,5.78694]
[1723852991711,0.00871845,2591.9,2591.8,9.12094]
[1723852991922,0.00871845,2591.9,2591.8,13.52437452]
[1723852993411,3.5766,2592.6,2592.4,1.92804]
[1723852993607,10.924,2592.8,2592.4,1.92804]
[1723852993809,10.924,2592.8,2592.4,1.92805]
[1723852994109,12.85184,2592.8,2592.3,2.66204]
[1723852994611,3.2078,2592.5,2592.3,0.00578347]
[1723852995012,0.344,2592.4,2592.3,0.00578347]
[1723852997711,0.344,2592.4,2592.3,1.93395347]
[1723852998418,3.2078,2592.5,2592.3,1.93395347]
[1723852998622,3.2078,2592.5,2592.3,0.00578347]
[1723852999816,5.78569,2592.4,2592.3,0.00578347]
[1723853000916,3.8576,2592.4,2592.3,0.00578347]
[1723853001215,5.13588,2592.5,2592.3,0.00578347]
[1723853001611,5.78569,2592.4,2592.3,0.00578347]
[1723853002619,3.8576,2592.4,2592.3,0.00578347]
[1723853003117,3.2078,2592.5,2592.3,0.00578347]
[1723853003325,0.0102195,2592.8,2592.3,0.00578347]
[1723853003520,0.0102195,2592.8,2592.6,1.92791]
[1723853003720,0.0102195,2592.8,2592.5,1.92799]
[1723853004409,0.0102195,2592.8,2592.6,1.92793]
[1723853004817,0.0102195,2592.8,2592.5,6.03610565]
[1723853005005,0.0102195,2592.8,2592.5,1.92798]
[1723853005207,0.0102195,2592.8,2592.5,1.92802]
[1723853006521,0.0102195,2592.8,2592.6,1.9279]
[1723853007023,0.0102195,2592.8,2592.7,1.92787]
[1723853008014,0.0102195,2592.8,2592.7,10.01759066]
[1723853008520,0.0102195,2592.8,2592.7,10.39539066]
[1723853017621,0.00938571,2592.8,2592.7,12.32326066]
[1723853018321,0.00938571,2592.8,2592.7,17.32326066]
[1723853020023,0.00938571,2592.8,2592.7,12.32326066]
[1723853020336,0.00938571,2592.8,2592.7,12.63539525]
[1723853023126,0.00578347,2592.8,2592.7,17.63539525]
[1723853024033,3.5737,2593.5,2592.7,17.63539525]
[1723853024327,3.5737,2593.5,2593.4,1.9273]
[1723853024328,0.00332242,2593.5,2593.4,1.9273]
[1723853024535,3.21112242,2593.5,2593.4,1.93130874]
[1723853024731,0.00332242,2593.5,2593.4,1.93130874]
[1723853024927,3.21112242,2593.5,2593.4,1.93130874]
[1723853025128,0.00332242,2593.5,2593.4,1.93130874]
[1723853025330,3.21112242,2593.5,2593.4,1.93130874]
[1723853026635,0.00332242,2593.5,2593.4,1.93130874]
[1723853027738,0.00332242,2593.5,2593.4,5.78730874]
[1723853027923,0.00332242,2593.5,2593.4,9.82598729]
[1723853028734,0.00332242,2593.5,2593.4,14.82598729]
[1723853029134,0.00332242,2593.5,2593.4,9.82598729]
[1723853030036,0.00332242,2593.5,2593.4,16.75333729]
[1723853031237,0.00022864,2593.5,2593.4,19.96113729]
[1723853031737,0.00022864,2593.5,2593.4,14.96113729]
[1723853032531,0.00022864,2593.5,2593.4,13.03378729]
[1723853033134,0.00022864,2593.5,2593.4,9.17778729]
[1723853033333,0.00022864,2593.5,2593.4,13.03378729]
[1723853033530,0.00022864,2593.5,2593.4,9.17778729]
[1723853033835,0.00022864,2593.5,2593.4,13.03378729]
[1723853034143,0.00022864,2593.5,2593.4,19.96113729]
[1723853034437,0.00578347,2593.7,2593.6,3.8544]
[1723853034640,0.00578347,2593.7,2593.6,11.0436]
[1723853034840,0.00578347,2593.7,2593.6,15.11395138]
[1723853035230,0.00578347,2593.7,2593.6,13.18675138]
[1723853035438,0.01055153,2593.7,2593.6,13.18675138]
[1723853042047,0.01055153,2593.7,2593.6,15.11395138]
[1723853043561,0.3553,2594.2,2594.1,1.92683]
[1723853044563,0.35979056,2594.2,2594.1,1.92683]
[1723853045652,0.35979056,2594.2,2594.1,5.99034391]
[1723853045855,0.00449056,2594.2,2594.1,6.36124391]
[1723853046051,0.00449056,2594.2,2594.1,6.70894391]
[1723853046851,0.00449056,2594.2,2594.1,10.56414391]
[1723853048153,0.00449056,2594.2,2594.1,12.49097391]
[1723853053652,0.00578347,2594.4,2594.3,1.92668]
[1723853053853,0.00578347,2594.4,2594.3,10.65668]
[1723853054053,0.00578347,2594.4,2594.3,20.85286728]
[1723853054457,0.00578347,2594.4,2594.3,18.92618728]
[1723853054650,0.01046204,2594.4,2594.3,15.07178728]
[1723853054857,0.72646204,2594.4,2594.3,15.07178728]
[1723853056259,4.58086204,2594.4,2594.3,10.65668]
[1723853056568,1.92669,2594.3,2593.9,1.93272347]
[1723853056861,3.2078,2594.2,2594.0,4.39048298]
[1723853057063,5.13457,2594.2,2594.0,4.39048298]
[1723853057465,3.2078,2594.2,2594.0,4.39048298]
[1723853058366,3.2078,2594.2,2593.9,1.93275347]
[1723853058670,3.2078,2594.2,2594.0,1.9269]
[1723853059757,0.72646204,2594.4,2594.1,1.92683]
[1723853060263,0.72646204,2594.4,2593.9,0.00578347]
[1723853060264,6.50748204,2594.4,2594.0,1.92686]
[1723853060462,0.72646204,2594.4,2593.9,0.00578347]
[1723853060765,0.72646204,2594.4,2594.1,1.92676]
[1723853061168,4.58086204,2594.4,2594.2,1.92675]
[1723853061368,0.72646204,2594.4,2594.2,1.92675]
[1723853061559,3.8544,2594.3,2594.2,1.92675]
[1723853061761,3.8544,2594.3,2594.1,1.92679]
[1723853061958,2.65307204,2594.4,2593.9,0.00578347]
[1723853062159,3.2078,2594.2,2594.0,1.92689]
[1723853062869,5.13458,2594.2,2593.9,1.93273347]
[1723853063269,3.2078,2594.2,2593.9,1.93273347]
[1723853063770,3.2078,2594.2,2594.0,1.92687]
[1723853063970,3.2078,2594.2,2593.9,0.00578347]
[1723853063971,3.2078,2594.2,2594.1,5.26083]
[1723853064172,0.72646204,2594.4,2594.1,5.26083]
[1723853064173,0.72646204,2594.4,2594.3,1.92668]
[1723853064672,4.58086204,2594.4,2594.3,1.92668]
[1723853065073,4.58086204,2594.4,2594.2,1.92671]
[1723853065273,0.72646204,2594.4,2594.2,1.92671]
[1723853066372,0.72646204,2594.4,2594.3,1.92668]
[1723853066573,0.72646204,2594.4,2594.2,1.92671]
[1723853067474,4.58086204,2594.4,2594.3,1.92668]
[1723853067676,0.72646204,2594.4,2594.3,1.92668]
[1723853067861,4.58086204,2594.4,2594.3,1.92668]
[1723853069472,6.09761118,2594.4,2594.3,1.92668]
[1723853069671,4.58086204,2594.4,2594.3,1.92668]
[1723853070268,0.01046204,2594.4,2594.3,1.92668]
[1723853070679,0.01046204,2594.4,2594.3,6.15650753]
[1723853071775,0.01046204,2594.4,2594.3,1.92668]
[1723853079581,5.38161118,2594.4,2594.1,3.334]
[1723853079783,7.14653787,2594.2,2594.1,3.334]
[1723853079981,1.92686,2594.1,2593.9,5.40178347]
[1723853080283,1.86518473,2594.0,2593.9,5.40178347]
[1723853080484,2.23458473,2594.0,2593.9,5.40178347]
[1723853081087,2.23458473,2594.0,2593.9,6.78978347]
[1723853081290,5.44238473,2594.0,2593.9,6.78978347]
[1723853081784,5.44238473,2594.0,2593.9,8.71676347]
[1723853081991,3.2078,2594.0,2593.9,10.65876347]
[1723853083887,3.2078,2594.0,2593.9,8.73178347]
[1723853084096,4.72168473,2594.0,2593.9,8.73178347]
[1723853084390,8.57688473,2594.0,2593.9,3.33578347]
[1723853086093,8.57688473,2594.0,2593.9,3.70078347]
[1723853088384,10.50378473,2594.0,2593.9,0.00578347]
[1723853088585,1.92713,2593.7,2593.6,0.3704]
[1723853088881,3.2078,2593.7,2593.6,0.3704]
[1723853089283,3.44040882,2593.8,2593.6,0.3704]
[1723853089602,1.92705,2593.8,2593.6,0.3704]
[1723853089789,3.44040882,2593.8,2593.6,0.3704]
[1723853089993,1.92705,2593.8,2593.6,0.3704]
[1723853090193,2.22615882,2593.9,2593.6,0.3704]
[1723853090493,1.87365882,2593.9,2593.7,1.92712]
[1723853090681,1.87365882,2593.9,2593.6,0.3704]
[1723853090881,5.13494,2593.7,2593.4,5.26711221]
[1723853091087,0.342,2593.6,2593.4,0.00979221]
[1723853091289,2.29637,2593.5,2593.4,0.00979221]
[1723853091492,0.3691,2593.5,2593.4,0.00979221]
[1723853091793,4.2251,2593.5,2593.4,0.00979221]
[1723853094995,1.92742,2593.3,2593.2,0.3443]
[1723853095299,5.13522,2593.3,2593.2,0.3443]
[1723853095492,8.99122,2593.3,2593.2,0.3443]
[1723853095889,8.99122,2593.3,2593.2,0.34863829]
[1723853096082,7.0638,2593.3,2593.2,0.34863829]
[1723853098389,3.2078,2593.3,2593.2,2.27613829]
[1723853098593,3.2078,2593.3,2593.2,2.63783829]
[1723853099891,3.44052882,2593.7,2593.2,2.63783829]
[1723853099892,3.44052882,2593.7,2593.3,1.92739]
[1723853100102,3.2078,2593.4,2593.3,2.28049]
[1723853100594,7.0638,2593.4,2593.3,2.28049]
[1723853101190,7.0638,2593.4,2593.3,0.3531]
[1723853101691,3.2078,2593.4,2593.3,2.28052]
[1723853104001,7.0638,2593.4,2593.2,2.27609829]
[1723853104186,0.3673,2593.3,2593.2,2.27609829]
[1723853105298,3.2078,2593.4,2593.3,1.92742]
[1723853105698,7.0638,2593.4,2593.3,2.65962]
[1723853106099,7.0638,2593.4,2593.3,0.7322]
[1723853106396,8.99115,2593.4,2593.2,0.34863829]
[1723853106603,0.3683,2593.3,2593.2,0.34863829]
[1723853107099,0.3683,2593.3,2593.2,2.27613829]
[1723853107600,3.2078,2593.4,2593.3,1.92742]
[1723853108198,3.2078,2593.4,2593.3,2.64272]
[1723853112007,3.2078,2593.4,2593.3,4.03072]
[1723853113702,3.2078,2593.4,2593.3,9.81414]
[1723853114007,4.113,2593.8,2593.7,1.92713]
[1723853114208,4.113,2593.8,2593.7,3.31513]
[1723853114501,4.113,2593.8,2593.7,1.92713]
[1723853114701,7.3208,2593.8,2593.7,3.31513]
[1723853114906,11.176,2593.8,2593.6,1.388]